bitfinex-derivatives/quotes_SOLF0:USTF0_20260203
["timestamp","ask_amount","ask_price","bid_price","bid_amount"]
[1770150351938,140.5275,99.75,99.642,140.6782]
[1770150351939,75.97088715,99.746,99.677,140.628]
[1770150352842,75.97088715,99.744,99.667,140.6421]
[1770150353143,84.35287201,99.73,99.646,140.6724]
[1770150353342,75.97088715,99.72,99.643,140.6768]
[1770150353536,8.38198486,99.71,99.647,140.6702]
[1770150353741,8.38198486,99.71,99.648,140.6701]
[1770150353938,75.97088715,99.744,99.662,140.6491]
[1770150354143,75.97088715,99.739,99.669,140.6402]
[1770150354342,75.97088715,99.739,99.68,9.0401]
[1770150354539,75.97088715,99.739,99.652,140.6639]
[1770150354750,75.85930102,99.719,99.642,140.6779]
[1770150354941,8.38198486,99.7,99.648,9.043]
[1770150355246,8.38198486,99.7,99.611,140.7213]
[1770150355247,75.85930102,99.699,99.62,140.7088]
[1770150355447,75.85930102,99.699,99.631,140.6933]
[1770150355642,75.85930102,99.699,99.653,9.0425]
[1770150356847,75.85930102,99.689,99.627,9.0449]
[1770150357150,8.38198486,99.71,99.636,140.6865]
[1770150357340,84.24128588,99.71,99.636,140.6865]
[1770150358246,8.38198486,99.69,99.626,140.7005]
[1770150358448,8.38198486,99.69,99.593,9.79057051]
[1770150358648,8.38198486,99.69,99.574,140.7736]
[1770150358649,8.38198486,99.65,99.601,9.0473]
[1770150359146,9.0353,99.733,99.657,9.0421]
[1770150359347,8.38198486,99.72,99.646,9.79057051]
[1770150360050,8.38198486,99.72,99.647,9.0431]
[1770150360246,1.7455815,99.763,99.659,140.6542]
[1770150360247,8.38198486,99.74,99.659,140.6542]
[1770150360447,61.16805085,99.72,99.651,10.05496248]
[1770150361246,52.78606599,99.72,99.66,140.6531]
[1770150361446,52.78606599,99.72,99.661,140.6515]
[1770150361642,52.78606599,99.72,99.667,9.0413]
[1770150363145,52.78606599,99.742,99.677,140.6278]
[1770150363740,52.78606599,99.767,99.696,140.602]
[1770150364143,400.5,99.796,99.709,140.5837]
[1770150364144,9.0304,99.787,99.709,140.5837]
[1770150364350,9.0304,99.787,99.71,140.5822]
[1770150364548,52.78606599,99.789,99.716,140.573]
[1770150365155,52.78606599,99.789,99.718,9.0366]
[1770150366054,52.78606599,99.789,99.728,9.0357]
[1770150366753,52.78606599,99.789,99.714,140.5765]
[1770150366754,52.78606599,99.789,99.738,9.0348]
[1770150367151,52.78606599,99.813,99.738,9.0348]
[1770150367456,8.38198486,99.81,99.748,9.0339]
[1770150367856,8.38198486,99.79,99.728,21.3152042]
[1770150368355,8.38198486,99.79,99.725,9.036]
[1770150368651,52.78606599,99.809,99.745,9.0342]
[1770150368860,52.78606599,99.809,99.741,21.18472041]
[1770150369149,52.78606599,99.809,99.755,9.0333]
[1770150369656,52.78606599,99.835,99.762,140.5089]
[1770150369850,52.78606599,99.835,99.775,140.4909]
[1770150370052,8.38198486,99.84,99.779,140.4852]
[1770150370361,52.78606599,99.86,99.795,9.0296]
[1770150370854,52.78606599,99.86,99.805,9.0288]
[1770150371557,8.38198486,99.87,99.818,9.0276]
[1770150371753,8.38198486,99.85,99.783,140.4793]
[1770150371957,140.3367,99.885,99.771,21.42039843]
[1770150371958,8.38198486,99.83,99.771,21.42039843]
[1770150372447,8.38198486,99.83,99.775,9.0315]
[1770150372653,8.38198486,99.81,99.747,22.99287341]
[1770150373054,61.16805085,99.83,99.757,140.5015]
[1770150373247,8.38198486,99.84,99.764,23.1765072]
[1770150373451,8.38198486,99.85,99.784,9.0298]
[1770150373651,8.38198486,99.85,99.785,140.4618]
[1770150374157,52.78606599,99.86,99.796,9.0286]
[1770150374954,8.38198486,99.83,99.763,23.15096647]
[1770150375259,8.38198486,99.83,99.762,140.4944]
[1770150375260,8.38198486,99.86,99.788,140.4576]
[1770150375558,8.38198486,99.86,99.777,140.4733]
[1770150375559,8.38198486,99.86,99.8,140.4411]
[1770150375754,8.38198486,99.88,99.801,140.4395]
[1770150375956,61.16805085,99.88,99.809,140.4288]
[1770150376153,61.16805085,99.88,99.806,9.0277]
[1770150376357,52.78606599,99.859,99.789,140.4571]
[1770150376661,52.78606599,99.859,99.796,140.4467]
[1770150376860,52.78606599,99.883,99.811,140.4261]
[1770150377555,52.78606599,99.883,99.814,140.4214]
[1770150377756,52.78606599,99.883,99.804,164.32852639]
[1770150378260,52.78606599,99.883,99.82,9.0265]
[1770150378455,61.16805085,99.85,99.778,22.86858347]
[1770150378958,61.16805085,99.85,99.789,9.0293]
[1770150379157,8.38198486,99.87,99.803,140.4368]
[1770150379358,8.38198486,99.87,99.807,140.431]
[1770150379561,8.38198486,99.85,99.806,9.0278]
[1770150379763,8.38198486,99.85,99.781,140.4676]
[1770150379952,8.38198486,99.85,99.795,9.0287]
[1770150380158,8.38198486,99.83,99.776,23.03594816]
[1770150380463,8.38198486,99.83,99.746,140.517]
[1770150380464,55.10970997,99.829,99.754,25.36078704]
[1770150381363,55.10970997,99.829,99.719,400.06]
[1770150381364,55.10970997,99.879,99.788,25.65668034]
[1770150381561,8.38198486,99.87,99.796,140.4466]
[1770150382059,8.38198486,99.87,99.806,9.0278]
[1770150382263,8.38198486,99.85,99.773,140.4797]
[1770150382759,8.38198486,99.85,99.781,140.4676]
[1770150382954,8.38198486,99.85,99.771,140.4817]
[1770150383164,8.38198486,99.85,99.775,140.4756]
[1770150383763,63.49169483,99.83,99.75,140.5116]
[1770150384062,8.38198486,99.81,99.749,24.56693327]
[1770150385167,8.38198486,99.81,99.767,9.0313]
[1770150385762,8.38198486,99.82,99.767,9.0313]
[1770150385968,8.38198486,99.8,99.732,140.5366]
[1770150386458,8.38198486,99.8,99.737,31.84349701]
[1770150387063,17.41038486,99.8,99.737,31.84349701]
[1770150387367,8.38198486,99.78,99.715,32.00394467]
[1770150387566,55.10970997,99.799,99.71,140.5671]
[1770150387567,9.0287,99.796,99.729,9.0347]
[1770150387962,8.38198486,99.78,99.729,9.0347]
[1770150388166,8.38198486,99.78,99.678,140.6125]
[1770150388167,63.49169483,99.78,99.696,32.00394467]
[1770150388472,8.38198486,99.76,99.696,32.00394467]
[1770150388767,8.38198486,99.76,99.705,9.0369]
[1770150389065,8.38198486,99.76,99.696,32.00394467]
[1770150389662,9.0323,99.757,99.699,9.0375]
[1770150389966,9.0323,99.757,99.696,32.00394467]
[1770150390372,8.38198486,99.74,99.688,9.0385]
[1770150391064,8.38198486,99.8,99.733,31.50162629]
[1770150391269,55.10970997,99.833,99.759,140.4989]
[1770150391465,55.10970997,99.833,99.761,9.0319]
[1770150391663,55.10970997,99.819,99.733,31.50162629]
[1770150391862,8.38198486,99.8,99.733,31.50162629]
[1770150392061,8.38198486,99.8,99.753,9.0326]
[1770150392860,64.13630997,99.819,99.753,9.0326]
[1770150393065,8.38198486,99.81,99.763,9.0317]
[1770150393466,8.38198486,99.81,99.755,140.5037]
[1770150394768,8.38198486,99.81,99.761,9.0318]
[1770150394970,8.38198486,99.81,99.754,140.5061]
[1770150395173,8.38198486,99.81,99.746,183.23600884]
[1770150395174,8.38198486,99.81,99.76,9.0319]
[1770150396078,63.49169483,99.81,99.747,9.0331]
[1770150396573,8.38198486,99.77,99.708,140.5709]
[1770150396773,8.38198486,99.77,99.709,140.5696]
[1770150396970,55.10970997,99.769,99.7,43.19176856]
[1770150397166,55.10970997,99.769,99.707,9.0367]
[1770150397470,8.38198486,99.75,99.707,9.0367]
[1770150398074,8.38198486,99.75,99.717,9.0359]
[1770150398276,8.38198486,99.75,99.7,43.19176856]
[1770150398470,8.36842406,99.76,99.7,43.19176856]
[1770150398671,8.36842406,99.76,99.715,9.036]
[1770150398978,8.36842406,99.76,99.7,43.19176856]
[1770150399168,8.36842406,99.74,99.692,9.038]
[1770150399678,63.47813403,99.76,99.702,9.0372]
[1770150400070,63.47813403,99.76,99.701,140.5806]
[1770150401579,63.47813403,99.76,99.693,140.5924]
[1770150401580,63.47813403,99.76,99.713,9.0362]
[1770150402070,63.47813403,99.76,99.693,140.5924]
[1770150402071,8.36842406,99.74,99.684,47.42403962]
[1770150402271,8.36842406,99.74,99.69,9.0383]
[1770150402674,8.36842406,99.72,99.661,44.78067262]
[1770150403275,8.36842406,99.72,99.624,400.16]
[1770150403276,8.36842406,99.7,99.638,44.78067262]
[1770150403478,8.36842406,99.68,99.611,44.92549802]
[1770150403675,8.36842406,99.68,99.616,140.7]
[1770150403874,8.36842406,99.68,99.615,44.92549802]
[1770150404375,8.36842406,99.69,99.616,140.7002]
[1770150404572,55.10970997,99.689,99.615,44.92549802]
[1770150404777,8.36842406,99.67,99.615,44.92549802]
[1770150406079,55.10970997,99.689,99.626,140.6856]
[1770150406277,55.10970997,99.689,99.628,140.6837]
[1770150406477,55.10970997,99.689,99.631,140.6789]
[1770150406674,8.36842406,99.71,99.635,44.57888989]
[1770150406877,63.47813403,99.71,99.635,44.57888989]
[1770150407279,63.47813403,99.71,99.624,140.6884]
[1770150407280,8.36842406,99.71,99.647,44.71623554]
[1770150407981,8.36842406,99.73,99.652,140.65]
[1770150408181,63.47813403,99.73,99.652,140.65]
[1770150408381,55.10970997,99.728,99.648,9.0421]
[1770150409483,140.5327,99.736,99.648,9.0421]
[1770150409484,63.47813403,99.71,99.648,9.0421]
[1770150409682,8.36842406,99.69,99.624,45.63637817]
[1770150410381,8.36842406,99.69,99.638,9.043]
[1770150410586,8.36842406,99.69,99.638,140.6689]
[1770150410890,55.10970997,99.705,99.636,45.18003661]
[1770150411088,55.10970997,99.705,99.611,140.7079]
[1770150411089,8.36842406,99.69,99.619,185.87563661]
[1770150411289,8.36842406,99.69,99.62,45.18003661]
[1770150412184,8.36842406,99.69,99.634,9.0434]
[1770150412689,8.36842406,99.69,99.644,9.0425]
[1770150413590,55.10970997,99.705,99.644,9.0425]
[1770150413790,55.10970997,99.705,99.654,9.0415]
[1770150413986,8.36842406,99.71,99.654,9.0415]
[1770150414292,57.3361222,99.728,99.654,9.0415]
[1770150414686,57.3361222,99.728,99.658,140.6406]
[1770150414886,8.36842406,99.74,99.675,45.20464027]
[1770150415191,57.53142187,99.752,99.675,45.20464027]
[1770150415494,8.36842406,99.76,99.698,45.32338361]
[1770150415681,57.53142187,99.779,99.709,185.89258361]
[1770150416186,57.53142187,99.779,99.717,9.0358]
[1770150416388,57.53142187,99.779,99.712,140.5655]
[1770150416788,57.53142187,99.779,99.717,9.0358]
[1770150416988,57.53142187,99.779,99.709,45.32338361]
[1770150417682,57.53142187,99.779,99.699,140.5833]
[1770150417883,57.53142187,99.759,99.684,39.0808487]
[1770150418284,57.53142187,99.759,99.686,38.73890858]
[1770150418885,57.53142187,99.759,99.705,9.0369]
[1770150419390,57.53142187,99.85,99.787,9.0295]
[1770150419694,57.53142187,99.85,99.783,140.4644]
[1770150419885,57.53142187,99.85,99.781,140.4672]
[1770150420090,57.53142187,99.85,99.78,9.0301]
[1770150420395,57.53142187,99.839,99.754,38.84859568]
[1770150420595,8.36842406,99.83,99.754,38.84859568]
[1770150420797,8.36842406,99.83,99.719,140.5551]
[1770150420798,57.53142187,99.809,99.731,40.67997572]
[1770150421187,57.53142187,99.809,99.733,9.0344]
[1770150421390,57.53142187,99.809,99.739,140.5266]
[1770150421590,57.53142187,99.809,99.731,40.67997572]
[1770150421990,57.53142187,99.809,99.702,140.5794]
[1770150421991,8.36842406,99.79,99.711,140.5667]
[1770150422189,8.36842406,99.79,99.727,140.5441]
[1770150422392,57.53142187,99.809,99.733,39.01026531]
[1770150422593,57.53142187,99.809,99.739,9.0338]
[1770150422991,8.36842406,99.81,99.747,140.516]
[1770150423298,8.36842406,99.81,99.748,9.033]
[1770150423493,8.36842406,99.81,99.741,39.01026531]
[1770150424089,65.89984593,99.79,99.717,39.11136522]
[1770150424495,8.36842406,99.79,99.731,140.5387]
[1770150424795,65.89984593,99.81,99.734,40.37485781]
[1770150425094,9.0266,99.82,99.736,40.37485781]
[1770150425295,9.0266,99.82,99.67,8.36842406]
[1770150425296,8.36842406,99.92,99.834,40.47484146]
[1770150425494,8.636e-05,99.895,99.863,140.3531]
[1770150425794,8.36842406,99.94,99.863,149.3757]
[1770150426200,57.53142187,99.939,99.857,40.47484146]
[1770150426401,8.36842406,99.9,99.833,41.01302085]
[1770150427295,8.36842406,99.91,99.834,140.3926]
[1770150427490,65.89984593,99.91,99.834,140.3926]
[1770150427688,65.89984593,99.91,99.833,41.01302085]
[1770150428301,8.36842406,99.89,99.814,140.4217]
[1770150428498,65.89984593,99.89,99.81,39.16593432]
[1770150428694,65.89984593,99.89,99.811,140.4249]
[1770150429401,65.89984593,99.89,99.81,39.16593432]
[1770150429994,65.89984593,99.89,99.811,140.4261]
[1770150430195,65.89984593,99.89,99.822,140.4096]
[1770150430396,8.36842406,99.91,99.834,140.3927]
[1770150430698,8.36842406,99.91,99.834,149.418]
[1770150431597,8.36842406,99.91,99.824,140.4068]
[1770150431598,8.36842406,99.91,99.844,149.4037]
[1770150432098,8.36842406,99.91,99.844,9.0243]
[1770150432301,65.89984593,99.91,99.844,9.0243]
[1770150432895,57.53142187,99.934,99.856,9.0233]
[1770150433093,8.36842406,99.92,99.856,9.0233]
[1770150433400,65.89984593,99.92,99.854,140.3647]
[1770150433601,65.89984593,99.92,99.855,9.0233]
[1770150434004,8.36842406,99.88,99.82,39.4553075]
[1770150434396,140.2913,99.908,99.796,39.50462047]
[1770150434397,8.36842406,99.86,99.796,39.50462047]
[1770150434596,57.53142187,99.879,99.811,9.0273]
[1770150434802,8.36842406,99.87,99.811,9.0273]
[1770150435001,57.53142187,99.849,99.745,39.50462047]
[1770150435297,399.94,99.881,99.757,140.5011]
[1770150435298,8.36842406,99.82,99.757,140.5011]
[1770150435504,8.36842406,99.84,99.783,140.4645]
[1770150435698,8.36842406,99.84,99.793,9.0289]
[1770150436205,8.36842406,99.84,99.78,9.0301]
[1770150436400,8.36842406,99.84,99.773,39.59192386]
[1770150436605,65.89984593,99.84,99.762,140.4945]
[1770150436906,179.92,99.848,99.783,35.82637703]
[1770150437105,8.36842406,99.86,99.788,140.458]
[1770150437603,57.53142187,99.857,99.759,35.90895732]
[1770150437904,8.36842406,99.84,99.763,140.4938]
[1770150438103,8.36842406,99.84,99.776,9.0305]
[1770150438293,65.89984593,99.84,99.76,35.90895732]
[1770150438498,8.36842406,99.82,99.741,140.5237]
[1770150438699,8.36842406,99.82,99.736,36.08050663]
[1770150438894,66.55822187,99.818,99.738,9.034]
[1770150439201,66.55822187,99.818,99.737,140.5302]
[1770150439403,66.55822187,99.818,99.748,9.033]
[1770150440005,8.36842406,99.8,99.736,36.08050663]
[1770150440405,8.36842406,99.8,99.736,45.11460663]
[1770150440700,8.36842406,99.8,99.709,140.5687]
[1770150440701,8.36842406,99.78,99.712,36.67014863]
[1770150441406,8.36842406,99.8,99.732,36.75269827]
[1770150441599,66.34591567,99.82,99.739,36.75269827]
[1770150441799,8.36842406,99.8,99.739,36.75269827]
[1770150441999,8.36842406,99.8,99.741,9.0336]
[1770150442399,8.36842406,99.8,99.714,37.20483558]
[1770150442400,57.97749161,99.797,99.714,37.20483558]
[1770150442600,8.36842406,99.76,99.687,37.20483558]
[1770150442896,8.36842406,99.76,99.655,140.6458]
[1770150442897,66.34591567,99.78,99.704,37.20483558]
[1770150443104,8.36842406,99.74,99.657,37.20483558]
[1770150443398,8.36842406,99.74,99.676,9.0395]
[1770150443596,8.36842406,99.74,99.666,140.6293]
[1770150443597,399.96,99.756,99.701,140.58]
[1770150443803,57.97749161,99.773,99.701,140.58]
[1770150444004,57.97749161,99.773,99.701,9.0373]
[1770150444406,57.97749161,99.858,99.749,140.5127]
[1770150444714,140.2537,99.934,99.827,140.403]
[1770150445004,75.79766906,99.943,99.873,140.3382]
[1770150445201,75.79766906,99.943,99.828,258.04]
[1770150445202,59.92936906,99.943,99.899,140.3021]
[1770150445402,26.71306906,99.943,99.869,140.3446]
[1770150445601,26.71306906,99.943,99.855,2.29529718]
[1770150445602,26.71306906,99.943,99.87,140.3429]
[1770150445805,26.71306906,99.943,99.88,140.3282]
[1770150446000,8.36842406,99.93,99.86,140.3569]
[1770150446600,8.36842406,99.91,99.858,140.3593]
[1770150446810,8.36842406,99.93,99.871,140.3415]
[1770150447013,8.36842406,99.95,99.885,140.322]
[1770150447306,57.97749161,99.951,99.885,140.322]
[1770150447508,57.97749161,99.951,99.895,140.3081]
[1770150447714,57.97749161,99.979,99.895,140.3081]
[1770150447907,57.97749161,99.979,99.908,140.2894]
[1770150448309,57.97749161,99.979,99.921,140.2704]
[1770150448512,140.0757,100.07,99.967,140.2064]
[1770150448809,140.0757,100.07,99.939,18.14350809]
[1770150448810,8.36842406,100.15,100.07,158.20170809]
[1770150449013,8.36842406,100.15,100.09,140.0303]
[1770150449212,8.36842406,100.15,100.1,140.0204]
[1770150449507,261.02,100.17,100.08,140.0476]
[1770150449712,148.30672406,100.16,100.05,140.0792]
[1770150449912,139.9659,100.14,100.02,158.61299478]
[1770150450206,8.36842406,100.08,100.02,140.1317]
[1770150450600,139.9933,100.12,100.03,23.2280651]
[1770150450601,139.9932,100.12,100.03,23.2280651]
[1770150450803,8.36842406,100.08,100.01,140.14]
[1770150451006,8.36842406,100.09,100.03,140.1167]
[1770150451313,8.36842406,100.07,100.01,23.57007231]
[1770150451505,8.36842406,100.08,100.01,163.71107231]
[1770150451809,8.36842406,100.07,100.01,163.71537231]
[1770150452010,206.97259161,100.12,100.04,140.1037]
[1770150452011,57.97749161,100.12,100.04,140.1037]
[1770150452204,57.97749161,100.12,100.02,280.2571]
[1770150452205,8.36842406,100.07,100.02,23.57007231]
[1770150452402,31.045062,100.08,100.02,23.57007231]
[1770150452604,31.045062,100.08,99.993,140.1695]
[1770150452809,31.045062,100.09,100.02,23.94428894]
[1770150453005,31.045062,100.12,100.05,140.0896]
[1770150453204,31.045062,100.12,100.05,23.94428894]
[1770150453404,599.33682204,100.13,100.05,23.94428894]
[1770150453601,599.33682204,100.13,100.02,140.1314]
[1770150453602,140.022,100.1,100.02,24.28030397]
[1770150453810,1.73913043,100.13,100.05,140.0893]
[1770150454003,106.84273106,100.19,100.1,140.0197]
[1770150454210,106.84273106,100.15,100.06,140.0766]
[1770150454410,139.9419,100.16,100.06,140.0682]
[1770150454712,31.045062,100.14,100.04,140.0961]
[1770150455008,170.996762,100.15,100.04,140.1043]
[1770150455215,31.045062,100.14,100.05,142.59022005]
[1770150455508,139.9419,100.16,100.05,142.59022005]
[1770150455509,170.986962,100.16,100.06,2.50032005]
[1770150455706,170.986962,100.16,100.05,140.0899]
[1770150455912,139.9522,100.15,100.06,2.49999359]
[1770150456112,139.9522,100.15,100.05,140.0899]
[1770150456304,31.045062,100.13,100.04,140.0998]
[1770150456510,31.045062,100.13,100.03,140.1181]
[1770150456710,31.045062,100.13,100.04,2.50053149]
[1770150456908,140.0377,100.09,99.989,140.175]
[1770150457111,171.069262,100.1,99.995,140.1672]
[1770150457406,31.045062,100.1,100.0,140.1495]
[1770150457607,31.045062,100.11,100.02,140.1321]
[1770150457808,171.053062,100.11,100.01,140.1464]
[1770150458010,171.053062,100.11,99.99,140.1736]
[1770150458011,138.89511105,100.09,99.991,9.011]
[1770150458211,140.0634,100.07,99.992,2.50145212]
[1770150458513,140.0816,100.06,99.959,140.2182]
[1770150458813,279.6594,100.24,100.13,139.975]
[1770150459014,142.58818636,100.26,100.16,139.9358]
[1770150459214,2.77948636,100.26,100.17,139.917]
[1770150459413,2.77948636,100.26,100.19,148.8849]
[1770150459613,2.77948636,100.26,100.17,139.917]
[1770150459916,139.8266,100.24,100.14,139.9517]
[1770150460108,139.8676,100.21,100.15,2.49732751]
[1770150460311,139.8536,100.22,100.11,140.0001]
[1770150460312,139.8534,100.22,100.11,140.0001]
[1770150460512,139.8534,100.22,100.09,140.0223]
[1770150460513,148.8735,100.2,100.12,2.49777091]
[1770150460807,148.8735,100.2,100.08,140.0363]
[1770150460808,139.7934,100.27,100.15,139.9487]
[1770150461008,148.8066,100.25,100.14,148.9549]
[1770150461206,139.8679,100.21,100.11,139.9945]
[1770150461409,139.8551,100.22,100.12,142.48973349]
[1770150461612,148.8459,100.22,100.12,8.9994]
[1770150461924,163.22416483,100.26,100.25,139.8058]
[1770150461925,8.636e-05,100.26,100.25,139.8058]
[1770150462215,139.6291,100.39,100.25,139.8058]
[1770150462216,8.9762,100.38,100.28,139.7649]
[1770150462411,8.9762,100.38,100.26,139.7966]
[1770150462412,139.6595,100.36,100.26,139.7966]
[1770150462617,139.67847101,100.33,100.23,139.8306]
[1770150462812,139.7141,100.32,100.21,559.59107847]
[1770150463116,139.7141,100.32,100.22,2.49507088]
[1770150463117,139.7424,100.3,100.22,2.49507088]
[1770150463320,139.6866,100.34,100.23,139.8385]
[1770150463516,139.6866,100.34,100.23,139.8386]
[1770150463709,148.6664,100.34,100.23,139.8386]
[1770150463915,139.7,100.33,100.22,148.8421]
[1770150464116,139.7145,100.32,100.22,139.8516]
[1770150464316,139.7325,100.31,100.21,139.8639]
[1770150464619,139.7582,100.29,100.19,139.8924]
[1770150464821,139.7848,100.27,100.16,139.9354]
[1770150465013,139.7844,100.27,100.17,139.9225]
[1770150465210,139.47153615,100.28,100.18,139.9077]
[1770150465412,139.8237,100.25,100.14,139.9632]
[1770150465614,139.8023,100.26,100.15,139.9507]
[1770150466017,148.7892,100.26,100.16,139.9352]
[1770150466317,139.8128,100.25,100.15,148.9475]
[1770150466511,355.12776906,100.36,100.17,419.7523]
[1770150466714,215.44556906,100.37,100.27,139.7829]
[1770150466921,215.44556906,100.37,100.26,139.7972]
[1770150466922,139.6866,100.34,100.24,139.8213]
[1770150467115,139.6865,100.34,100.24,148.8099]
[1770150467310,139.7301,100.31,100.21,139.8585]
[1770150467621,139.7174,100.32,100.21,139.8585]
[1770150467820,139.7018,100.33,100.23,139.8391]
[1770150468121,139.7001,100.33,100.23,139.8391]
[1770150468316,139.6614,100.36,100.26,139.7946]
[1770150468517,139.673,100.35,100.25,139.8108]
[1770150468721,139.7002,100.33,100.23,139.8312]
[1770150468921,139.7586,100.29,100.19,139.8949]
[1770150469220,139.7811,100.28,100.16,139.9237]
[1770150469519,139.7346,100.31,100.21,139.8668]
[1770150469720,8.9839,100.3,100.2,139.8797]
[1770150469915,148.7256,100.3,100.2,139.8797]
[1770150470313,8.9839,100.3,100.2,148.8719]
[1770150470514,139.7852,100.27,100.17,139.9208]
[1770150471021,139.7975,100.26,100.17,8.9949]
[1770150471424,148.7712,100.27,100.17,8.9949]
[1770150471724,148.7849,100.26,100.16,148.9194]
[1770150472023,148.7849,100.26,100.16,8.9959]
[1770150472317,139.8261,100.24,100.14,148.9538]
[1770150472517,139.8117,100.25,100.15,139.9505]
[1770150472912,139.8117,100.25,100.13,139.9772]
[1770150472913,139.8457,100.23,100.13,139.9772]
[1770150473111,139.8612,100.22,100.12,139.9827]
[1770150473522,139.8683,100.21,100.11,139.9942]
[1770150473722,139.8612,100.22,100.11,139.9942]
[1770150473919,160.48087847,100.23,100.13,139.978]
[1770150474117,148.8447,100.22,100.12,139.992]
[1770150474325,139.8672,100.21,100.1,140.007]
[1770150474720,139.8974,100.19,100.08,140.0393]
[1770150475024,139.8974,100.19,100.09,140.0342]
[1770150475520,8.9944,100.18,100.08,149.0466]
[1770150475825,139.8964,100.19,100.08,140.044]
[1770150476021,148.89,100.19,100.09,140.0344]
[1770150476226,139.8825,100.2,100.1,140.0124]
[1770150477119,8.9929,100.2,100.1,149.0136]
[1770150477721,148.8744,100.2,100.1,9.0012]
[1770150478221,139.8678,100.21,100.11,149.0057]
[1770150478428,139.8678,100.21,100.11,8.9999]
[1770150478617,1.73778432,100.21,100.12,8.9991]
[1770150479128,10.72958432,100.21,100.12,8.9991]
[1770150479325,141.60628432,100.21,100.1,289.0263]
[1770150479525,141.60628432,100.21,100.11,140.0049]
[1770150479819,73.86068405,100.2,100.06,160.69897847]
[1770150480023,160.56137847,100.17,100.07,140.0607]
[1770150480225,8.9956,100.17,100.07,140.0607]
[1770150480421,148.9189,100.17,100.08,9.0027]
[1770150480820,148.9194,100.17,100.08,9.0027]
[1770150481027,139.9533,100.15,100.05,140.0896]
[1770150481527,148.9786,100.13,100.03,140.1049]
[1770150481724,139.9798,100.13,100.02,140.1328]
[1770150482035,9.0024,100.09,100.01,9.0093]
[1770150482221,140.0216,100.1,100.01,9.0093]
[1770150482427,140.036,100.09,100.0,219.80561428]
[1770150482633,9.0034,100.08,100.0,219.80561428]
[1770150482824,140.0216,100.1,100.0,359.96571428]
[1770150483130,140.0216,100.1,100.0,359.96501428]
[1770150483326,538.6114,100.11,100.0,359.96501428]
[1770150483327,407.6008,100.11,100.01,140.1452]
[1770150483529,398.6,100.11,100.03,140.1162]
[1770150483832,139.9782,100.14,100.03,140.1162]
[1770150484325,139.9938,100.12,100.02,140.1311]
[1770150484526,20.63517847,100.09,100.0,359.96521428]
[1770150484925,9.0008,100.11,100.02,140.1321]
[1770150485225,140.007,100.11,100.0,359.96521428]
[1770150485430,139.31164283,100.1,100.0,359.96521428]
[1770150485829,160.60098508,100.12,100.02,140.1305]
[1770150486029,20.63517847,100.12,100.04,140.1006]
[1770150486235,139.9799,100.13,100.03,140.1162]
[1770150486529,139.9799,100.13,100.0,219.80561428]
[1770150486530,140.0497,100.08,100.0,219.80561428]
[1770150486730,160.51187847,100.21,100.11,140.0062]
[1770150486931,160.51187847,100.21,100.12,8.9991]
[1770150486932,20.63517847,100.21,100.12,8.9991]
[1770150487121,20.63517847,100.21,100.11,140.0062]
[1770150487122,160.50237847,100.21,100.11,140.0062]
[1770150487326,139.899,100.19,100.09,140.0345]
[1770150487523,160.51667847,100.2,100.09,140.0345]
[1770150487725,160.51667847,100.2,100.1,140.0206]
[1770150488333,159.9748589,100.2,100.1,140.0206]
[1770150488734,139.8971,100.19,100.08,140.0389]
[1770150488933,139.8971,100.19,100.09,140.0338]
[1770150489433,8.9934,100.19,100.09,149.0356]
[1770150489735,560.4528168,100.2,100.1,140.0138]
[1770150490430,418.8333589,100.2,100.11,151.50232689]
[1770150490632,418.8333589,100.2,100.11,149.0037]
[1770150491140,418.8333589,100.2,100.12,148.9877]
[1770150491437,398.74,100.2,100.13,142.47418623]
[1770150491634,398.74,100.2,100.13,139.976]
[1770150491835,398.74,100.2,100.13,8.9981]
[1770150492231,398.74,100.2,100.14,2.49824994]
[1770150492435,398.74,100.2,100.13,8.9981]
[1770150492637,398.74,100.2,100.14,2.49823978]
[1770150492837,139.854,100.22,100.13,8.9981]
[1770150493036,20.63517847,100.2,100.11,8.9998]
[1770150493239,20.63517847,100.2,100.12,2.4987302]
[1770150493441,8.9935,100.19,100.13,2.4987302]
[1770150493640,139.854,100.22,100.12,8.9992]